Department,Entity,Posted Date,Internal Voucher Number,Invoice Line Amount Net GBP,Supplier Name,Account Code
FCO,FCO,01/12/2015,5373398,-33335,KANTAR MEDIA INTELLIGENCE LTD,General Information Services
FCO,FCO,10/12/2015,5405128,30916,PEACE DIRECT,Programme Spend (Oracle Projects Control Account)
FCO,FCO,01/12/2015,5604631,148941,BAE SYSTEMS APPLIED INTELLIGENCE LIMITED,Multiple Accounts
FCO,FCO,01/12/2015,5604639,148941,BAE SYSTEMS APPLIED INTELLIGENCE LIMITED,Multiple Accounts
FCO,FCO,01/12/2015,5605491,798574.14,LEB OTHER DEBTORS,Recharge Suspense Account (Oracle PA Control Account)
FCO,FCO,01/12/2015,5615768,199687.58,FCO SERVICES,Air Freight Dip Bags - Freight & Clearance Charges
FCO,FCO,01/12/2015,5616554,44993.35,MOD REDUNDANCY PAYMENTS,Multiple Accounts
FCO,FCO,01/12/2015,5616601,33841.02,NAJMI SONS AND BROTHERS LTD,Fuel
FCO,FCO,01/12/2015,5616717,192946.33,ACCOMODATION PROVIDER,Rental Payments - residential
FCO,FCO,01/12/2015,5616744,108649.73,SCHOOL,Schooling for Children at Post
FCO,FCO,01/12/2015,5616783,32746.5,INFORMED SOLUTIONS LIMITED,Assets Under Construction (Oracle PA Control Account)
FCO,FCO,01/12/2015,5616883,37257.25,FCO SERVICES,Air Freight Dip Bags - Freight & Clearance Charges
FCO,FCO,01/12/2015,5616949,44880,S MACNEILLIE & SON LTD,Assets Under Construction (Oracle PA Control Account)
FCO,FCO,01/12/2015,5617228,54383.5,THE THOMSON FOUNDATION,Programme Spend (Oracle Projects Control Account)
FCO,FCO,01/12/2015,5617461,57321,WHITES CONSULTANTS LIMITED,Programme Spend (Oracle Projects Control Account)
FCO,FCO,01/12/2015,5617468,69240,NI CO OPERATION OVERSEAS NI CO LTD,Programme Spend (Oracle Projects Control Account)
FCO,FCO,01/12/2015,5617471,28301.43,TOWN AND COUNTRY PLANNING ASSOCIATION,Programme Spend (Oracle Projects Control Account)
FCO,FCO,01/12/2015,5617483,26538,INDEX ON CENSORSHIP (SUBSCRNS DEPT),Programme Spend (Oracle Projects Control Account)
FCO,FCO,01/12/2015,5617486,378074.26,EUROPEAN MEDICINES AGENCY,Protocol - General VAT Refunds to Other Organisations
FCO,FCO,01/12/2015,5617488,92362.72,INTERNATIONAL COFFEE ORGANIZATION,Protocol - General VAT Refunds to Other Organisations
FCO,FCO,01/12/2015,5617502,132613,PRISONERS ABROAD,Human Rights : Prisoners
FCO,FCO,01/12/2015,5617511,28200,S MACNEILLIE & SON LTD,Assets Under Construction (Oracle PA Control Account)
FCO,FCO,01/12/2015,5617534,39864.3,KOIZA INTERNATIONAL LTD,"Purchase of Furniture, Fittings and Domestic Appliances"
FCO,FCO,01/12/2015,5617556,25326.89,PACE FUELCARE LIMITED,Fuel Oil Non-Residential
FCO,FCO,02/12/2015,5618335,25104.1,PACE FUELCARE LIMITED,Fuel Oil Non-Residential
FCO,FCO,02/12/2015,5618339,25060.38,PACE FUELCARE LIMITED,Fuel Oil Non-Residential
FCO,FCO,02/12/2015,5618374,149312.4,STABILIZATION SUPPORT SERVICES,Programme Spend (Oracle Projects Control Account)
FCO,FCO,02/12/2015,5618522,58465,NATIONAL DEMOCRATIC INSTITUTE,Programme Spend (Oracle Projects Control Account)
FCO,FCO,02/12/2015,5618536,32000,CRS RENT A FRIDGE LTD,Assets Under Construction (Oracle PA Control Account)
FCO,FCO,02/12/2015,5618561,32119.92,TODD RESEARCH LTD,Estates - Other Machinery and Equipment
FCO,FCO,02/12/2015,5618562,139182.65,TORRE ESPACIO CASTELLANA SAU,Rental Payments - non residential
FCO,FCO,02/12/2015,5618606,1703020.24,G4S RISK MANAGEMENT LTD,UK Guarding Contracts Overseas
FCO,FCO,02/12/2015,5618607,30477.29,LONDON ENERGY,Electricity Non-Residential
FCO,FCO,02/12/2015,5618617,26886.85,DANISH DEMINING GROUP,Programme Spend (Oracle Projects Control Account)
FCO,FCO,02/12/2015,5618663,33020,CROWN AGENTS FINANCIAL SERVICES LTD,Programme Spend (Oracle Projects Control Account)
FCO,FCO,02/12/2015,5618669,30581,SG ELECTRICAL SOLUTIONS,Construction Project more than 10k
FCO,FCO,02/12/2015,5618687,34027.63,COMPUTACENTER UK LTD,Unscheduled repairs to building infrastructure
FCO,FCO,02/12/2015,5618694,25622.85,COMPUTACENTER UK LTD,Assets Under Construction (Oracle PA Control Account)
FCO,FCO,02/12/2015,5618731,33023.03,CARITAS KOS CATHOLIC CHURCH,Programme Spend (Oracle Projects Control Account)
FCO,FCO,02/12/2015,5618741,198006.6,FCO SERVICES,Residential Property Services
FCO,FCO,02/12/2015,5618761,28222.43,FCO SERVICES,Assets Under Construction (Oracle PA Control Account)
FCO,FCO,02/12/2015,5618766,165000,FCO SERVICES,Assets Under Construction (Oracle PA Control Account)
FCO,FCO,02/12/2015,5618771,44926.33,BAE SYSTEMS APPLIED INTELLIGENCE LIMITED,Information Systems Maintenance
FCO,FCO,02/12/2015,5618789,159165.6,FCO SERVICES,Assets Under Construction (Oracle PA Control Account)
FCO,FCO,02/12/2015,5618818,27199.62,FCO SERVICES,Assets Under Construction (Oracle PA Control Account)
FCO,FCO,02/12/2015,5618887,47118.51,PICKFORDS MOVE MANAGEMENT LTD,Heavy Baggage
FCO,FCO,02/12/2015,5618890,25549.21,PICKFORDS MOVE MANAGEMENT LTD,Personal Car Freight
FCO,FCO,02/12/2015,5618895,61250,IIZUKA,Assets Under Construction (Oracle PA Control Account)
FCO,FCO,02/12/2015,5618900,42600,IIZUKA,Assets Under Construction (Oracle PA Control Account)
FCO,FCO,03/12/2015,5619660,25381.73,UKRAINIAN CATHOLIC UNIVERSITY,Programme Spend (Oracle Projects Control Account)
FCO,FCO,03/12/2015,5619763,34305.62,PAKISTAN PEACE COLLECTIVE,Programme Spend (Oracle Projects Control Account)
FCO,FCO,03/12/2015,5619855,43127.03,DAMASEC GLOBAL GROUP,Assets Under Construction (Oracle PA Control Account)
FCO,FCO,03/12/2015,5619876,45248.22,G4S SECURE SOLUTIONS UK,Manned Guarding Services
FCO,FCO,03/12/2015,5619886,-44926.33,BAE SYSTEMS APPLIED INTELLIGENCE LIMITED,Information Systems Maintenance
FCO,FCO,03/12/2015,5619900,44926.33,BAE SYSTEMS APPLIED INTELLIGENCE LIMITED,Information Systems Maintenance
FCO,FCO,03/12/2015,5619930,39000,CLUTTONS LLC,Estates Management Services
FCO,FCO,03/12/2015,5620032,26515.28,PROMETHIUM CARBON PTY LTD,Programme Spend (Oracle Projects Control Account)
FCO,FCO,03/12/2015,5620044,32196.47,TURNER AND TOWNSEND PROPERTY SERVICES,Assets Under Construction (Oracle PA Control Account)
FCO,FCO,03/12/2015,5620056,-103850,IIZUKA,Assets Under Construction (Oracle PA Control Account)
FCO,FCO,03/12/2015,5620139,50137.96,PILDAT,Programme Spend (Oracle Projects Control Account)
FCO,FCO,03/12/2015,5620140,79563.73,FCO SERVICES,Assets Under Construction (Oracle PA Control Account)
FCO,FCO,03/12/2015,5620278,46350,FCO SERVICES,Construction Project more than 10k
FCO,FCO,03/12/2015,5620287,30000,FCO SERVICES,Assets Under Construction (Oracle PA Control Account)
FCO,FCO,03/12/2015,5620371,27875.12,SOUTH REVENUE SERVICE,Multiple Accounts
FCO,FCO,16/12/2015,5620371,-27875.12,SOUTH REVENUE SERVICE,Multiple Accounts
FCO,FCO,03/12/2015,5620422,6600000,THE ASSOCIATION OF COMMONWEALTH UNIVERSITIES,Programme Spend (Oracle Projects Control Account)
FCO,FCO,03/12/2015,5620428,264000,THE ASSOCIATION OF COMMONWEALTH UNIVERSITIES,Programme Spend (Oracle Projects Control Account)
FCO,FCO,03/12/2015,5620497,167160,CONTROL RISKS GROUP,UK Mobile Guarding Contract overseas
FCO,FCO,03/12/2015,5620507,52140,CONTROL RISKS GROUP,UK Mobile Guarding Contract overseas
FCO,FCO,03/12/2015,5620508,179613.91,STABILISATION NETWORK,Programme Spend (Oracle Projects Control Account)
FCO,FCO,03/12/2015,5620518,256297.18,CADG ENGINEERING PTE.LTD,Assets Under Construction (Oracle PA Control Account)
FCO,FCO,03/12/2015,5620575,226216.64,LONDON ENERGY,Electricity Non-Residential
FCO,FCO,03/12/2015,5620612,29234.05,KOIZA INTERNATIONAL LTD,"Purchase of Furniture, Fittings and Domestic Appliances"
FCO,FCO,03/12/2015,5620617,41977.88,COLLEGE OF POLICING,Programme Spend (Oracle Projects Control Account)
FCO,FCO,03/12/2015,5620631,255657.96,ARK GROUP DMCC,Programme Spend (Oracle Projects Control Account)
FCO,FCO,03/12/2015,5620654,45950,TRIALOGUE EDUCATIONAL TRUST,Programme Spend (Oracle Projects Control Account)
FCO,FCO,03/12/2015,5620693,36722.3,WASAFIRI CONSULTING,Programme Spend (Oracle Projects Control Account)
FCO,FCO,03/12/2015,5620696,25771.83,MACE INTERNATIONAL UK LIMITED,Assets Under Construction (Oracle PA Control Account)
FCO,FCO,03/12/2015,5620698,381251,CAPITA PROPERTY AND INFRASTRUCTURE LTD,Assets Under Construction (Oracle PA Control Account)
FCO,FCO,03/12/2015,5620699,148941,BAE SYSTEMS APPLIED INTELLIGENCE LIMITED,Specialist Contractors
FCO,FCO,03/12/2015,5620703,107118.75,BAE SYSTEMS APPLIED INTELLIGENCE LIMITED,Specialist Contractors
FCO,FCO,03/12/2015,5620735,733994.45,BAE SYSTEMS APPLIED INTELLIGENCE LIMITED,Information Systems Maintenance
FCO,FCO,03/12/2015,5620739,60570,BAE SYSTEMS APPLIED INTELLIGENCE LIMITED,Information Systems Maintenance
FCO,FCO,04/12/2015,5621363,28065.96,ACCOMODATION PROVIDER,Rental Payments - residential
FCO,FCO,04/12/2015,5621366,25677.36,ACCOMODATION PROVIDER,Rental Payments - residential
FCO,FCO,04/12/2015,5621468,97928.6,CEUME CONSORTIUM FOR ENHANCEMENT OF UKRAINIAN MANAGEMENT EDUCATION,Programme Spend (Oracle Projects Control Account)
FCO,FCO,04/12/2015,5621516,46227.42,DAW NANDA HMUN,Multiple Accounts
FCO,FCO,04/12/2015,5622612,244108.51,MORSON HUMAN RESOURCES LTD,Residential Property Services
FCO,FCO,07/12/2015,5623425,39139.56,CENTRE FOR POLICY ALTERNATIVE,Programme Spend (Oracle Projects Control Account)
FCO,FCO,07/12/2015,5623465,47193.52,ELIXIR CO,Programme Spend (Oracle Projects Control Account)
FCO,FCO,07/12/2015,5623490,49950,CHP EMPLOYEE EXPENSE,Multiple Accounts
FCO,FCO,07/12/2015,5623495,28543,MANHATTAN PAKISTAN PVT LTD,Programme Spend (Oracle Projects Control Account)
FCO,FCO,07/12/2015,5623541,80425.08,ANII,Programme Spend (Oracle Projects Control Account)
FCO,FCO,07/12/2015,5623914,27124.77,MOSTAFA ABBASALI GHOLAMHOSSEIN,Rental Payments - residential
FCO,FCO,07/12/2015,5623970,38218.7,MALERMESTER JEN PETTER LUNDE A,Property Maintenance Overseas Residential
FCO,FCO,07/12/2015,5623995,34537.73,OCONNELL WALSHE  AND PARTNERS LTD,Multiple Accounts
FCO,FCO,07/12/2015,5624112,44145,BBC MEDIA ACTION,Programme Spend (Oracle Projects Control Account)
FCO,FCO,07/12/2015,5624121,32606,AMAG AG,Assets Under Construction (Oracle PA Control Account)
FCO,FCO,07/12/2015,5624203,50478.21,PNP IMPREST,Interbank Transfers/Withdrawals
FCO,FCO,07/12/2015,5624338,784786.32,GILBERT ASH LIMITED,Assets Under Construction (Oracle PA Control Account)
FCO,FCO,07/12/2015,5624509,92708,UNITED NATIONS,Programme Spend (Oracle Projects Control Account)
FCO,FCO,07/12/2015,5624834,48386.03,UNITED NATIONS POPULATION FUND,Programme Spend (Oracle Projects Control Account)
FCO,FCO,07/12/2015,5625011,34415.4,COMPUTACENTER UK LTD,Equipment and Services For Disabled Staff
FCO,FCO,07/12/2015,5625203,50209.9,METROPOLITAN POLICE AUTHORITY,Programme Spend (Oracle Projects Control Account)
FCO,FCO,08/12/2015,5626920,79069.8,SCHOOL,Schooling for Children at Post
FCO,FCO,08/12/2015,5626994,66265.67,THE ROYAL BANK OF SCOTLAND,Children's Concessionary Journeys
FCO,FCO,01/12/2015,5627018,2504429.18,THE ROYAL BANK OF SCOTLAND,Corporate Credit Card Clearing Account
FCO,FCO,02/12/2015,5627018,93695.63,THE ROYAL BANK OF SCOTLAND,Corporate Credit Card Clearing Account
FCO,FCO,03/12/2015,5627018,50492.69,THE ROYAL BANK OF SCOTLAND,Corporate Credit Card Clearing Account
FCO,FCO,08/12/2015,5627929,45263.02,AFRICAN SKIES LTD,Programme Spend (Oracle Projects Control Account)
FCO,FCO,08/12/2015,5627981,29572.21,DIALOGUE ADVISORY GROUP,Programme Spend (Oracle Projects Control Account)
FCO,FCO,08/12/2015,5628084,85281,SCOTTISH POLICE SERVICES AUTHORITY,Programme Spend (Oracle Projects Control Account)
FCO,FCO,08/12/2015,5628090,37428.86,THAMES VALLEY POLICE AUTH INCOME,Programme Spend (Oracle Projects Control Account)
FCO,FCO,01/12/2015,5628177,988580.29,THE ROYAL BANK OF SCOTLAND,Travel Package Advance Overseas Posting (Credit Card Payments Only)
FCO,FCO,02/12/2015,5628177,41160.75,THE ROYAL BANK OF SCOTLAND,Travel Package Advance Overseas Posting (Credit Card Payments Only)
FCO,FCO,08/12/2015,5628263,424169,FCO SERVICES,Assets Under Construction (Oracle PA Control Account)
FCO,FCO,08/12/2015,5628670,28515,KAINOS SOFTWARE LTD,Assets Under Construction (Oracle PA Control Account)
FCO,FCO,08/12/2015,5628679,33968.16,INTERNATIONAL ALERT,Programme Spend (Oracle Projects Control Account)
FCO,FCO,08/12/2015,5628683,960127.51,GARDA WORLD LTD,UK Mobile Guarding Contract overseas
FCO,FCO,08/12/2015,5628846,25250.88,BRITISH COUNCIL,Recharge Suspense Account (Oracle PA Control Account)
FCO,FCO,08/12/2015,5628882,1445833.33,FCO SERVICES,Specialist Contractors
FCO,FCO,08/12/2015,5628884,59170.67,FCO SERVICES,Specialist Contractors
FCO,FCO,08/12/2015,5628887,83067.5,MINIMAL RISK CONSULTANCY LTD,UK Guarding Contracts Overseas
FCO,FCO,08/12/2015,5628917,-25523.72,UGK OTHER DEBTORS,Overseas Reclaimable Taxes
FCO,FCO,08/12/2015,5628960,37293,COVA SECURITY GATES LIMITED,Assets Under Construction (Oracle PA Control Account)
FCO,FCO,08/12/2015,5628965,37662,IOM INTERNATIONAL ORG FOR MIGRATION,Programme Spend (Oracle Projects Control Account)
FCO,FCO,09/12/2015,5630152,31782.01,MARJAN,Compensation Payments
FCO,FCO,09/12/2015,5630424,3273147.1,HMRC HM REVENUE AND CUSTOMS,Multiple Accounts
FCO,FCO,09/12/2015,5630428,-30630.74,IND OTHER DEBTORS,Schooling for Children at Post
FCO,FCO,09/12/2015,5630430,3572263.67,CABINET OFFICE,Multiple Accounts
FCO,FCO,09/12/2015,5630579,46637.28,CPS CROWN PROSECUTION SERVICE HQ,Programme Spend (Oracle Projects Control Account)
FCO,FCO,09/12/2015,5630665,79842,INTERNATIONAL MARITIME ORGANIZATION,Programme Spend (Oracle Projects Control Account)
FCO,FCO,09/12/2015,5630718,-55491.45,STB OTHER DEBTORS,Local Staff Pension Contributions
FCO,FCO,09/12/2015,5630720,80453.41,OROSTREAM INTERNATIONAL CONTRACTS LTD,Assets Under Construction (Oracle PA Control Account)
FCO,FCO,09/12/2015,5630872,74966.25,PEACE DIRECT,Programme Spend (Oracle Projects Control Account)
FCO,FCO,09/12/2015,5630902,-41252.64,DEC OTHER DEBTORS,Assets Under Construction (Oracle PA Control Account)
FCO,FCO,09/12/2015,5630906,33512.09,ENGINE UK LLP,Programme Spend (Oracle Projects Control Account)
FCO,FCO,09/12/2015,5630992,27260.97,DFID DEPT INTERNATIONAL DEVELOPMENT,Programme Spend (Oracle Projects Control Account)
FCO,FCO,09/12/2015,5631062,28357.24,DX NETWORK SERVICES,Postal Services
FCO,FCO,09/12/2015,5631102,"123,976.69",DEFENCE BUSINESS SERVICES FINANCE,Programme Spend (Oracle Projects Control Account)
FCO,FCO,09/12/2015,5631104,76827.51,ABROTEA BULGARIA AD,Multiple Accounts
FCO,FCO,09/12/2015,5631107,"184,165.18",DEFENCE BUSINESS SERVICES FINANCE,Programme Spend (Oracle Projects Control Account)
FCO,FCO,09/12/2015,5631123,447142.46,OROSTREAM INTERNATIONAL CONTRACTS LTD,Construction Project more than 10k
FCO,FCO,09/12/2015,5631129,150000,HOME OFFICE,Programme Spend (Oracle Projects Control Account)
FCO,FCO,09/12/2015,5631135,"948,439.00",DEFENCE BUSINESS SERVICES FINANCE,Programme Spend (Oracle Projects Control Account)
FCO,FCO,09/12/2015,5631392,91936.85,INCOSTRAT,Programme Spend (Oracle Projects Control Account)
FCO,FCO,09/12/2015,5631438,-86889,IIZUKA,Assets Under Construction (Oracle PA Control Account)
FCO,FCO,09/12/2015,5631468,85684,IIZUKA,Assets Under Construction (Oracle PA Control Account)
FCO,FCO,09/12/2015,5631508,40684,IIZUKA,Multiple Accounts
FCO,FCO,09/12/2015,5631524,27043.85,WESTMINSTER FOUNDATION FOR DEMOCRACY,Programme Spend (Oracle Projects Control Account)
FCO,FCO,09/12/2015,5631595,15700000,BRITISH COUNCIL,Programme Spend (Oracle Projects Control Account)
FCO,FCO,09/12/2015,5631601,400000,BRITISH COUNCIL,Programme Spend (Oracle Projects Control Account)
FCO,FCO,09/12/2015,5631602,150000,FOUNDATION HIRONDELLE,Programme Spend (Oracle Projects Control Account)
FCO,FCO,09/12/2015,5631604,48828.27,BBC MEDIA ACTION,Programme Spend (Oracle Projects Control Account)
FCO,FCO,09/12/2015,5631609,395326.01,INCOSTRAT,Programme Spend (Oracle Projects Control Account)
FCO,FCO,09/12/2015,5631610,124375,DTZ CONSULTING AND RESEARCH,Proceeds from Assets held for sale
FCO,FCO,09/12/2015,5631631,48350.68,ADAM SMITH INTERNATIONAL,Programme Spend (Oracle Projects Control Account)
FCO,FCO,09/12/2015,5631632,330561,MOD MINISTRY OF DEFENCE,Crisis Evacuation Expenses
FCO,FCO,09/12/2015,5631638,25800,PILGRIMS GROUP LTD,Programme Spend (Oracle Projects Control Account)
FCO,FCO,09/12/2015,5631647,249999,IOM INTERNATIONAL ORG FOR MIGRATION,Programme Spend (Oracle Projects Control Account)
FCO,FCO,10/12/2015,5632382,56455.9,DIPLOMAT FREIGHT SERVICES LTD(DFS),Post - Air Travel
FCO,FCO,10/12/2015,5633382,208261.53,845 THIRD LP,Multiple Accounts
FCO,FCO,10/12/2015,5633403,26950,UNIVERSITY OF CENTRAL ENGLAND IN BIRMINGHAM,Programme Spend (Oracle Projects Control Account)
FCO,FCO,10/12/2015,5633424,124711.06,LANGUAGE SERVICES DIRECT,Language Tuition: Essential
FCO,FCO,10/12/2015,5633491,65343.91,LANGUAGE SERVICES DIRECT,Language Tuition: Essential
FCO,FCO,10/12/2015,5633506,113360.43,AFRICAN SKIES LTD,Despatch Charges
FCO,FCO,10/12/2015,5633509,109703.64,AFRICAN SKIES LTD,Despatch Charges
FCO,FCO,10/12/2015,5633572,27819.47,UNHAS SOMALIA,Post - Air Travel
FCO,FCO,10/12/2015,5633750,65152.75,FCO SERVICES,Security: Works Non-Residential
FCO,FCO,10/12/2015,5633783,85004.12,PICKFORDS MOVE MANAGEMENT LTD,Heavy Baggage
FCO,FCO,10/12/2015,5633809,107633.58,PICKFORDS MOVE MANAGEMENT LTD,Heavy Baggage
FCO,FCO,10/12/2015,5633872,114866.72,PICKFORDS MOVE MANAGEMENT LTD,Heavy Baggage
FCO,FCO,10/12/2015,5633902,55144.62,CAPGEMINI UK PLC,IT/IS Consultancy
FCO,FCO,10/12/2015,5633971,114444.48,GENERALI ESTATE SPA,Multiple Accounts
FCO,FCO,10/12/2015,5634014,1067617.86,OROSTREAM INTERNATIONAL CONTRACTS LTD,Assets Under Construction (Oracle PA Control Account)
FCO,FCO,10/12/2015,5634018,37938,BRITISH EXPERTISE,Programme Spend (Oracle Projects Control Account)
FCO,FCO,10/12/2015,5634025,28386.51,FENIX INSIGHT LTD,Programme Spend (Oracle Projects Control Account)
FCO,FCO,10/12/2015,5634027,55424,INTERNATIONAL ORG FOR MIGRATION,Programme Spend (Oracle Projects Control Account)
FCO,FCO,10/12/2015,5634052,48226,PHYSICIANS FOR HUMAN RIGHTS INC,Programme Spend (Oracle Projects Control Account)
FCO,FCO,10/12/2015,5634112,177589.38,BIDWELLS,Rental Payments - non residential
FCO,FCO,10/12/2015,5634145,27856,AXIOM INTERNATIONAL LTD,Programme Spend (Oracle Projects Control Account)
FCO,FCO,10/12/2015,5634197,37938,BRITISH EXPERTISE,Programme Spend (Oracle Projects Control Account)
FCO,FCO,10/12/2015,5634202,194598.2,SLAUGHTER AND MAY,Programme Spend (Oracle Projects Control Account)
FCO,FCO,10/12/2015,5634206,57128.19,ADAM SMITH INTERNATIONAL,Programme Spend (Oracle Projects Control Account)
FCO,FCO,10/12/2015,5634207,78248.4,BIDWELLS,Rental Payments - non residential
FCO,FCO,11/12/2015,5636486,37986,NATIONAL DEMOCRATIC INSTITUTE,Programme Spend (Oracle Projects Control Account)
FCO,FCO,11/12/2015,5636559,34803.4,AXIOM INTERNATIONAL LTD,Programme Spend (Oracle Projects Control Account)
FCO,FCO,11/12/2015,5636588,131119,STATT CONSULTING LTD,Programme Spend (Oracle Projects Control Account)
FCO,FCO,11/12/2015,5636602,41365.35,BBC MEDIA ACTION,Programme Spend (Oracle Projects Control Account)
FCO,FCO,11/12/2015,5636652,31537.12,VERIFICATION TRAINING AND INFORMATION CENTRE,Programme Spend (Oracle Projects Control Account)
FCO,FCO,11/12/2015,5636721,29003.06,EQUITY BANK,Le Staff Pay
FCO,FCO,11/12/2015,5636734,32049.15,GO GROUP NLE,Programme Spend (Oracle Projects Control Account)
FCO,FCO,11/12/2015,5636750,31344.3,BAE SYSTEMS APPLIED INTELLIGENCE LIMITED,Assets Under Construction (Oracle PA Control Account)
FCO,FCO,11/12/2015,5636770,67049.35,AKTIS STRATEGY,Programme Spend (Oracle Projects Control Account)
FCO,FCO,11/12/2015,5636850,-34152.46,CAO OTHER DEBTORS,Construction Project more than 10k
FCO,FCO,11/12/2015,5636901,44851.54,BARBADOS REVENUE AUTHORITY,Recharge Suspense Account (Oracle PA Control Account)
FCO,FCO,11/12/2015,5636902,-34525.17,CAO OTHER DEBTORS,Assets Under Construction (Oracle PA Control Account)
FCO,FCO,11/12/2015,5636906,-25446.79,NEXT GENERATION ENROLLMENT,US Healthcare Contract
FCO,FCO,11/12/2015,5636914,43039.32,ACCOMODATION PROVIDER,Rental Payments - residential
FCO,FCO,11/12/2015,5637117,2050000,ISS FACILITY SERVICES LTD FCO OP - POE,FMCU POE Trust Account Debtor
FCO,FCO,11/12/2015,5637359,165442.87,ISS FACILITY SERVICES LTD FCO OP,FM Interserve BES Maintenance
FCO,FCO,11/12/2015,5637385,42521.45,ISS FACILITY SERVICES LTD FCO OP,Multiple Accounts
FCO,FCO,11/12/2015,5637386,35678.08,ISS FACILITY SERVICES LTD FCO OP,FM Interserve BES Maintenance
FCO,FCO,11/12/2015,5637389,153646.12,ISS FACILITY SERVICES LTD FCO OP,Multiple Accounts
FCO,FCO,11/12/2015,5637393,48489.73,ISS FACILITY SERVICES LTD FCO OP,Multiple Accounts
FCO,FCO,11/12/2015,5637401,157912.91,INTERSERVE FM LTD,Multiple Accounts
FCO,FCO,11/12/2015,5637409,37251.74,INTERSERVE FM LTD,Multiple Accounts
FCO,FCO,11/12/2015,5637437,37904.41,ISS FACILITY SERVICES LTD FCO OP,Recharge Suspense Account (Oracle PA Control Account)
FCO,FCO,11/12/2015,5637445,37350.38,ISS FACILITY SERVICES LTD FCO OP,Multiple Accounts
FCO,FCO,11/12/2015,5637466,1505192.65,MACE LIMITED,Assets Under Construction (Oracle PA Control Account)
FCO,FCO,11/12/2015,5637630,30392.07,PURSUE LTD,Programme Spend (Oracle Projects Control Account)
FCO,FCO,11/12/2015,5637636,35187,PURSUE LTD,Programme Spend (Oracle Projects Control Account)
FCO,FCO,11/12/2015,5637671,531265.31,MSECURE LIMITED,Assets Under Construction (Oracle PA Control Account)
FCO,FCO,11/12/2015,5637803,37000,OSCE ORG SECURITY COOPORATION EUROPE,Recharge Suspense Account (Oracle PA Control Account)
FCO,FCO,11/12/2015,5637828,67869.5,PRICEWATERHOUSE COOPERS LLP,Programme Spend (Oracle Projects Control Account)
FCO,FCO,11/12/2015,5637967,29646.03,AETNA,Multiple Accounts
FCO,FCO,14/12/2015,5639489,30500,SIGMA EXPERT,Programme Spend (Oracle Projects Control Account)
FCO,FCO,14/12/2015,5639710,41048.82,SHEIKH SUROOR BIN MOHD AL NAHYAN,Rental Payments - residential
FCO,FCO,14/12/2015,5639719,41048.82,SHEIKH SUROOR BIN MOHD AL NAHYAN,Rental Payments - residential
FCO,FCO,14/12/2015,5639762,264144.53,ANII,Programme Spend (Oracle Projects Control Account)
FCO,FCO,14/12/2015,5639774,32549.73,MIRAL ASSET MANAGMENT LLC,Multiple Accounts
FCO,FCO,14/12/2015,5639874,45397.47,BRITISH COUNCIL,Programme Spend (Oracle Projects Control Account)
FCO,FCO,14/12/2015,5639879,26263.72,J AND J DABDOUB LTD,Recharge Suspense Account (Oracle PA Control Account)
FCO,FCO,14/12/2015,5639881,32549.84,NAJMI SONS AND BROTHERS LTD,Fuel
FCO,FCO,14/12/2015,5640066,88233.12,ETANA,Programme Spend (Oracle Projects Control Account)
FCO,FCO,14/12/2015,5640265,102210.55,ISS FACILITY SERVICES LTD FCO OP,Multiple Accounts
FCO,FCO,14/12/2015,5640266,34752.44,ISS FACILITY SERVICES LTD FCO OP,Multiple Accounts
FCO,FCO,14/12/2015,5640354,73510.34,ADAM SMITH INTERNATIONAL,Programme Spend (Oracle Projects Control Account)
FCO,FCO,14/12/2015,5640390,45939.16,NETHERLANDS INSTITUTE FOR MULTIPARTY DEMOCRACY,Programme Spend (Oracle Projects Control Account)
FCO,FCO,14/12/2015,5640460,33209.35,ECQ EMPLOYEE EXPENSES,Recharge Suspense Account (Oracle PA Control Account)
FCO,FCO,14/12/2015,5640478,30737.06,BMATT,Recharge Suspense Account (Oracle PA Control Account)
FCO,FCO,14/12/2015,5640581,59776.83,BRITISH HIGH COMMISSIONS,Interbank Transfers/Withdrawals
FCO,FCO,14/12/2015,5640764,30629.51,BRITISH COUNCIL,Recharge Suspense Account (Oracle PA Control Account)
FCO,FCO,14/12/2015,5640797,42631,BAE SYSTEMS APPLIED INTELLIGENCE LIMITED,Multiple Accounts
FCO,FCO,14/12/2015,5640798,37669.41,PERMANENT COURT OF ARBITRATION,Programme Spend (Oracle Projects Control Account)
FCO,FCO,14/12/2015,5640809,31349.63,G4S SECURITY SERVICE DRC SPRL,Local Guards
FCO,FCO,14/12/2015,5640830,1966243.36,UNITED NATIONS,Programme Spend (Oracle Projects Control Account)
FCO,FCO,14/12/2015,5640851,125121.95,UNITED NATIONS,Programme Spend (Oracle Projects Control Account)
FCO,FCO,14/12/2015,5640853,70000,IOM INTERNATIONAL ORG FOR MIGRATION,Programme Spend (Oracle Projects Control Account)
FCO,FCO,14/12/2015,5640859,202787.93,INTERNATIONAL RELIEF AND DEVELOPMENT,Programme Spend (Oracle Projects Control Account)
FCO,FCO,14/12/2015,5640873,77998.6,GOVERNMENT LEGAL DEPARTMENT,Legal Consultancy
FCO,FCO,14/12/2015,5640886,312167.91,EASTERN SECURITY SERVICES,Programme Spend (Oracle Projects Control Account)
FCO,FCO,14/12/2015,5640887,103403.82,ADAM SMITH INTERNATIONAL,Programme Spend (Oracle Projects Control Account)
FCO,FCO,14/12/2015,5640891,30997.24,GREAT BRITAIN-CHINA CENTRE,Programme Spend (Oracle Projects Control Account)
FCO,FCO,14/12/2015,5640898,1132591,ADAM SMITH INTERNATIONAL,Programme Spend (Oracle Projects Control Account)
FCO,FCO,14/12/2015,5640900,123538.79,EASTERN SECURITY SERVICES,Programme Spend (Oracle Projects Control Account)
FCO,FCO,14/12/2015,5640940,220000.1,LONDON ENERGY,Electricity Non-Residential
FCO,FCO,14/12/2015,5640945,25800,COMPUTACENTER UK LTD,IT/IS Consultancy
FCO,FCO,14/12/2015,5640961,29379.63,LONDON ENERGY,Electricity Non-Residential
FCO,FCO,14/12/2015,5640975,139479.28,EMBASSY OF BULGARIA,Rental Payments - non residential
FCO,FCO,14/12/2015,5640976,59278.69,THE EGYPTIAN CONSULATE GENERAL IN LONDON,Rental Payments - non residential
FCO,FCO,15/12/2015,5641856,172755.05,AHMAD,Recharge Suspense Account (Oracle PA Control Account)
FCO,FCO,15/12/2015,5642113,63000,FCO SERVICES,Security: Works Non-Residential
FCO,FCO,15/12/2015,5642125,67702.83,ADP,Multiple Accounts
FCO,FCO,15/12/2015,5642139,80372.44,SECUREX AGENCIES LTD,Staff and Other Advances AP Control (Oracle Ap Control Account)
FCO,FCO,15/12/2015,5642288,169695.8,KELLOGG BROWN & ROOT LTD,Estates Management Services
FCO,FCO,15/12/2015,5642290,38682.25,KELLOGG BROWN & ROOT LTD,UK Guarding Contracts Overseas
FCO,FCO,15/12/2015,5642342,154875.05,FCO SERVICES,Assets Under Construction (Oracle PA Control Account)
FCO,FCO,15/12/2015,5642407,80093.95,FCO SERVICES,Assets Under Construction (Oracle PA Control Account)
FCO,FCO,15/12/2015,5642410,178254,CAPGEMINI UK PLC,Estates Management Services
FCO,FCO,15/12/2015,5642453,55563.75,AEGIS DEFENCE SERVICES LTD,Multiple Accounts
FCO,FCO,15/12/2015,5642500,350227.58,FCO SERVICES,Assets Under Construction (Oracle PA Control Account)
FCO,FCO,15/12/2015,5642503,26960.76,MINISTRY ECONOMY AND FINANCE KOSOVA,Programme Spend (Oracle Projects Control Account)
FCO,FCO,15/12/2015,5642508,331445.87,G4S SECURE SOLUTIONS UK,Manned Guarding Services
FCO,FCO,15/12/2015,5642513,87213,FCO SERVICES,Assets Under Construction (Oracle PA Control Account)
FCO,FCO,15/12/2015,5642520,58603,FCO SERVICES,Assets Under Construction (Oracle PA Control Account)
FCO,FCO,15/12/2015,5642536,52462.5,AGILE BYTE LIMITED,Assets Under Construction (Oracle PA Control Account)
FCO,FCO,15/12/2015,5642537,102969,FCO SERVICES,Assets Under Construction (Oracle PA Control Account)
FCO,FCO,15/12/2015,5642548,-62500.09,COMPUTACENTER UK LTD,IT/IS Consultancy
FCO,FCO,15/12/2015,5642562,371040.12,ADAM SMITH INTERNATIONAL,Programme Spend (Oracle Projects Control Account)
FCO,FCO,15/12/2015,5642564,113449,FCO SERVICES,Assets Under Construction (Oracle PA Control Account)
FCO,FCO,15/12/2015,5642567,86433,FCO SERVICES,Assets Under Construction (Oracle PA Control Account)
FCO,FCO,15/12/2015,5642570,80603,FCO SERVICES,Assets Under Construction (Oracle PA Control Account)
FCO,FCO,15/12/2015,5642621,103619,UNDP CONTRIBUTIONS,Programme Spend (Oracle Projects Control Account)
FCO,FCO,15/12/2015,5642645,50425.58,FCO SERVICES,Assets Under Construction (Oracle PA Control Account)
FCO,FCO,15/12/2015,5642690,26421,FCO SERVICES,Assets Under Construction (Oracle PA Control Account)
FCO,FCO,15/12/2015,5642708,58249.67,ECORYS GROUP UK,Programme Spend (Oracle Projects Control Account)
FCO,FCO,15/12/2015,5642716,474315.26,ADAM SMITH INTERNATIONAL,Programme Spend (Oracle Projects Control Account)
FCO,FCO,15/12/2015,5642741,77770.75,SONIC COMMUNICATIONS (INTERNATIONAL) LTD,Recharge Suspense Account (Oracle PA Control Account)
FCO,FCO,15/12/2015,5642777,56047.74,FCO SERVICES,Assets Under Construction (Oracle PA Control Account)
FCO,FCO,15/12/2015,5642791,84290.65,INDEPENDENT DIPLOMATS,Programme Spend (Oracle Projects Control Account)
FCO,FCO,15/12/2015,5642816,201005.9,NELSON LUXEMBOURG PROPRTY DEVLOPMT,Rental Payments - non residential
FCO,FCO,15/12/2015,5642826,102994,FCO SERVICES,Misc Security Payments
FCO,FCO,15/12/2015,5642841,51714,PECHTER POLLS,Programme Spend (Oracle Projects Control Account)
FCO,FCO,15/12/2015,5642853,100000,UNITED NATIONS,Programme Spend (Oracle Projects Control Account)
FCO,FCO,15/12/2015,5642863,29116.13,SECURITAS SAC,Local Guards
FCO,FCO,15/12/2015,5642870,79044.8,PUBLIC ORGANISATION HROMADSKE RADIO,Programme Spend (Oracle Projects Control Account)
FCO,FCO,15/12/2015,5642871,259211.53,INSTITUTE FOR SECURITY STUDIES ISS,Programme Spend (Oracle Projects Control Account)
FCO,FCO,15/12/2015,5642894,55749.39,FCO SERVICES,Information Systems Maintenance
FCO,FCO,15/12/2015,5642922,60697.08,GLOBAL PARTNERS GOVERNANCE PRACTICE LTD,Programme Spend (Oracle Projects Control Account)
FCO,FCO,15/12/2015,5642926,43297.8,MEDIA DIVERSITY INSTITUTE,Programme Spend (Oracle Projects Control Account)
FCO,FCO,15/12/2015,5642927,191114.89,STABILISATION NETWORK,Programme Spend (Oracle Projects Control Account)
FCO,FCO,15/12/2015,5642939,221808.53,ARK GROUP DMCC,Programme Spend (Oracle Projects Control Account)
FCO,FCO,15/12/2015,5642940,167285,INTER MEDIATE,Programme Spend (Oracle Projects Control Account)
FCO,FCO,15/12/2015,5642947,133819,UNITED NATIONS,Programme Spend (Oracle Projects Control Account)
FCO,FCO,15/12/2015,5643012,224625,DYNASAFE BACTEC LTD,Programme Spend (Oracle Projects Control Account)
FCO,FCO,15/12/2015,5643048,43890,DYNASAFE BACTEC LTD,Programme Spend (Oracle Projects Control Account)
FCO,FCO,15/12/2015,5643062,197205,AGA KHAN FOUNDATION UK NO 1,Programme Spend (Oracle Projects Control Account)
FCO,FCO,15/12/2015,5643063,350000,MARSHALL AID COMMERATION COMMISSION,Programme Spend (Oracle Projects Control Account)
FCO,FCO,15/12/2015,5643070,36313.45,CONCEPT BUILDING SERVICES SOUTHERN LTD,Construction Project more than 10k
FCO,FCO,15/12/2015,5643085,41686.23,COMMONWEALTH TELECOMMUNICATION ORG,Programme Spend (Oracle Projects Control Account)
FCO,FCO,16/12/2015,5643836,56193.22,LUCONEX SRL,Rental Payments - non residential
FCO,FCO,16/12/2015,5643848,64426.14,NORWEGIAN CHURCH AID,Programme Spend (Oracle Projects Control Account)
FCO,FCO,16/12/2015,5643922,59918.37,SHREE NAMAN DEVELOPERS LIMITED,Multiple Accounts
FCO,FCO,16/12/2015,5644047,30084,COMPUTACENTER UK LTD,Assets Under Construction (Oracle PA Control Account)
FCO,FCO,16/12/2015,5644049,37352.76,COMPUTACENTER UK LTD,Specialist Contractors
FCO,FCO,16/12/2015,5644125,43039.32,ACCOMODATION PROVIDER,Rental Payments - residential
FCO,FCO,16/12/2015,5644139,26700.32,ACCOMODATION PROVIDER,Rental Payments - residential
FCO,FCO,16/12/2015,5644147,50141.02,GLICO PROPERTIES LIMITED,Rental Payments - residential
FCO,FCO,16/12/2015,5644220,29472.63,FCO SERVICES,Security: Works Non-Residential
FCO,FCO,16/12/2015,5644292,168277.97,JUDIN COMBRINCK INC,Rental Payments - non residential
FCO,FCO,16/12/2015,5644296,168277.97,JUDIN COMBRINCK INC,Rental Payments - non residential
FCO,FCO,16/12/2015,5644299,168277.97,JUDIN COMBRINCK INC,Rental Payments - non residential
FCO,FCO,16/12/2015,5644302,168277.97,JUDIN COMBRINCK INC,Rental Payments - non residential
FCO,FCO,16/12/2015,5644316,50919,NORDIC INTERNATIONAL SUPPORT FOUNDATION,Programme Spend (Oracle Projects Control Account)
FCO,FCO,16/12/2015,5644338,48149,BRITISH COUNCIL,Programme Spend (Oracle Projects Control Account)
FCO,FCO,16/12/2015,5644401,90743.41,GLOBAL PARTNERS GOVERNANCE PRACTICE LTD,Programme Spend (Oracle Projects Control Account)
FCO,FCO,16/12/2015,5644429,27306.25,TRANSPARENCY INTERNATIONAL,Programme Spend (Oracle Projects Control Account)
FCO,FCO,16/12/2015,5644457,39692,OXFAM,Programme Spend (Oracle Projects Control Account)
FCO,FCO,16/12/2015,5644845,112881.67,WTG TECHNOLOGIES LIMITED,Information Systems Maintenance
FCO,FCO,16/12/2015,5644849,-664187.04,GUA OTHER DEBTORS,Proceeds from Assets held for sale
FCO,FCO,16/12/2015,5644864,40469,CAPITA BUSINESS SERVICES LTD,Language Exams (excl Hays)
FCO,FCO,16/12/2015,5644893,59982.99,AXIOM INTERNATIONAL LTD,Programme Spend (Oracle Projects Control Account)
FCO,FCO,16/12/2015,5644909,59316.42,AXIOM INTERNATIONAL LTD,Programme Spend (Oracle Projects Control Account)
FCO,FCO,16/12/2015,5644924,311500,AXIOM INTERNATIONAL LTD,Programme Spend (Oracle Projects Control Account)
FCO,FCO,16/12/2015,5644932,47608,AXIOM INTERNATIONAL LTD,Programme Spend (Oracle Projects Control Account)
FCO,FCO,16/12/2015,5644935,25575,AXIOM INTERNATIONAL LTD,Programme Spend (Oracle Projects Control Account)
FCO,FCO,16/12/2015,5644946,27590.51,CTA ECONOMIC AND EXPORT ANALYSTS,Programme Spend (Oracle Projects Control Account)
FCO,FCO,17/12/2015,5645908,32933.81,NAJMI SONS AND BROTHERS LTD,Fuel
FCO,FCO,17/12/2015,5646068,52462.5,AGILE BYTE LIMITED,Assets Under Construction (Oracle PA Control Account)
FCO,FCO,17/12/2015,5646074,41075,AGILE BYTE LIMITED,Assets Under Construction (Oracle PA Control Account)
FCO,FCO,17/12/2015,5646157,34221.6,RTKL-UK LTD,Assets Under Construction (Oracle PA Control Account)
FCO,FCO,17/12/2015,5646237,52144.92,STANDARD BANK OF MALAWI,Multiple Accounts
FCO,FCO,17/12/2015,5646246,68644.9,HOME OFFICE,Miscellaneous Expenditure: inc subscriptions and equipment maintenance
FCO,FCO,17/12/2015,5646308,73318,INSTITUTE FOR WAR AND PEACE REPORTING IWPR,Programme Spend (Oracle Projects Control Account)
FCO,FCO,17/12/2015,5646419,1542671.31,RISK ADVISORY GROUP PLC,Programme Spend (Oracle Projects Control Account)
FCO,FCO,17/12/2015,5646438,55200,WILTON PARK EXECUTIVE AGENCY,Programme Spend (Oracle Projects Control Account)
FCO,FCO,17/12/2015,5646439,327559.16,KPMG FIDUCIAIRE,Multiple Accounts
FCO,FCO,17/12/2015,5646472,42448.34,TRAVELHIRE,GH/VIP Grant in Aid
FCO,FCO,17/12/2015,5646514,"-212,824.67",DEFENCE BUSINESS SERVICES FINANCE,Mod Guarding Services Residential
FCO,FCO,17/12/2015,5646522,-87078.43,GUA OTHER DEBTORS,Proceeds from the Sale of Capitalised Vehicles
FCO,FCO,17/12/2015,5646852,394950.87,ARTEOS GMBH,Multiple Accounts
FCO,FCO,17/12/2015,5646897,80000,OECD,Programme Spend (Oracle Projects Control Account)
FCO,FCO,18/12/2015,5647705,96659.13,HOTELLINE FOR TOURISTIC INVESTMENT LTD,Multiple Accounts
FCO,FCO,18/12/2015,5647765,75997.28,TEL AVIV MUNICIPALITY,Rental Payments - non residential
FCO,FCO,18/12/2015,5647787,29824.86,BHC INDIA STAFF PROVIDENT FUND,Multiple Accounts
FCO,FCO,18/12/2015,5647849,25903.29,ACCOMODATION PROVIDER,Rental Payments - residential
FCO,FCO,18/12/2015,5647869,92085.6,EDENRED,FCO KCS Nursery
FCO,FCO,18/12/2015,5648017,-76293.52,ETA OTHER DEBTORS,Overseas Reclaimable Taxes
FCO,FCO,18/12/2015,5648061,76264.64,SEGURIDAD SOCIAL,Multiple Accounts
FCO,FCO,18/12/2015,5648255,120451.87,MINISTARSTVO UNUTRASNJIH POSLOVA,Recharge Suspense Account (Oracle PA Control Account)
FCO,FCO,18/12/2015,5648301,31612.77,PANACEA,Programme Spend (Oracle Projects Control Account)
FCO,FCO,18/12/2015,5648438,-138658.65,ZIMRA,Overseas Reclaimable Taxes
FCO,FCO,18/12/2015,5648500,34552.58,ADAM SMITH INTERNATIONAL,Programme Spend (Oracle Projects Control Account)
FCO,FCO,18/12/2015,5648503,1676358.28,ADAM SMITH INTERNATIONAL,Programme Spend (Oracle Projects Control Account)
FCO,FCO,18/12/2015,5648507,32722.54,HOLDING IMMOBILIARE PALLAVICINI SPA,Rental Payments - residential
FCO,FCO,18/12/2015,5648590,35000,GOVERNMENT COMMUNICATIONS BUREAU  ADMIN A/C 6253,Programme Spend (Oracle Projects Control Account)
FCO,FCO,18/12/2015,5648603,120084.2,AEGIS DEFENCE SERVICES LTD,Programme Spend (Oracle Projects Control Account)
FCO,FCO,18/12/2015,5648607,182235.22,KELLOGG BROWN & ROOT LTD,Estates Management Services
FCO,FCO,21/12/2015,5649432,25717.39,THAN THI THIEN HUONG,Recharge Suspense Account (Oracle PA Control Account)
FCO,FCO,21/12/2015,5649434,32636.27,THAN THI THIEN HUONG,Recharge Suspense Account (Oracle PA Control Account)
FCO,FCO,21/12/2015,5649443,26159.01,DEVELOPMENT POLICY INSTITUTE,Recharge Suspense Account (Oracle PA Control Account)
FCO,FCO,21/12/2015,5649466,40893.11,HARIS ENTERPRISES PVT LTD,Local Guards
FCO,FCO,21/12/2015,5649522,108615.42,ICICI LOMBARD GENERAL INSURANCE COMPANY LIMITED,Multiple Accounts
FCO,FCO,21/12/2015,5649806,26087.27,INTERNATIONAL PEACE COOPERATION CENTER,Programme Spend (Oracle Projects Control Account)
FCO,FCO,21/12/2015,5649871,45430.39,ACCOMODATION PROVIDER,Rental Payments - residential
FCO,FCO,21/12/2015,5649998,41593.22,RANGER PROTECTION AND SECURITY COMPANY LTD,Local Guards
FCO,FCO,21/12/2015,5650095,133229.24,GOVERNMENT LEGAL DEPARTMENT,Legal Consultancy
FCO,FCO,21/12/2015,5650210,32811.28,THE ROYAL BANK OF SCOTLAND,UK - Air Travel
FCO,FCO,21/12/2015,5650226,30450,RSM EMPLOYEE EXPENSES,Fco Staff Sterling Cheques
FCO,FCO,21/12/2015,5650284,38400.07,ISS FACILITY SERVICES LTD FCO OP - POE,Multiple Accounts
FCO,FCO,21/12/2015,5650285,253245.47,ISS FACILITY SERVICES LTD FCO OP - POE,Multiple Accounts
FCO,FCO,21/12/2015,5650287,139627.16,ISS FACILITY SERVICES LTD FCO OP - POE,Multiple Accounts
FCO,FCO,21/12/2015,5650289,40859.24,ISS FACILITY SERVICES LTD FCO OP - POE,Multiple Accounts
FCO,FCO,21/12/2015,5650298,67590.48,ISS FACILITY SERVICES LTD FCO OP - POE,Multiple Accounts
FCO,FCO,21/12/2015,5650300,48034.17,ISS FACILITY SERVICES LTD FCO OP - POE,Multiple Accounts
FCO,FCO,21/12/2015,5650301,55319.74,ISS FACILITY SERVICES LTD FCO OP - POE,Multiple Accounts
FCO,FCO,21/12/2015,5650314,29332.81,THE ROYAL BANK OF SCOTLAND,Children's Concessionary Journeys
FCO,FCO,21/12/2015,5650328,110814.85,ADAM SMITH INTERNATIONAL,Programme Spend (Oracle Projects Control Account)
FCO,FCO,21/12/2015,5650392,63007.51,ADAM SMITH INTERNATIONAL,Programme Spend (Oracle Projects Control Account)
FCO,FCO,21/12/2015,5650439,34569,NON VIOLENT PEACE FORCE,Programme Spend (Oracle Projects Control Account)
FCO,FCO,21/12/2015,5650445,277908.83,CABINET OFFICE,Early Retirement Costs (Pre VES)
FCO,FCO,21/12/2015,5650505,101122.48,NATIONAL HOTEL COMPLEX,Rental Payments - non residential
FCO,FCO,21/12/2015,5650576,97453.02,UNDP MULTI PARTNER TRUST FUND OFFICE,Programme Spend (Oracle Projects Control Account)
FCO,FCO,21/12/2015,5650652,185651.44,THE ROYAL BANK OF SCOTLAND,Multiple Accounts
FCO,FCO,21/12/2015,5650663,35000,WILTON PARK EXECUTIVE AGENCY,Programme Spend (Oracle Projects Control Account)
FCO,FCO,21/12/2015,5650692,82000,UNITED NATIONS,Programme Spend (Oracle Projects Control Account)
FCO,FCO,21/12/2015,5650715,35328.83,FCO SERVICES,Assets Under Construction (Oracle PA Control Account)
FCO,FCO,21/12/2015,5650722,102225.44,DIPLOMATIC MISSION SUPPLIES LTD,"Purchase of Furniture, Fittings and Domestic Appliances"
FCO,FCO,21/12/2015,5650727,72077.76,FCO SERVICES,Construction Project more than 10k
FCO,FCO,21/12/2015,5650762,204463,UNITED NATIONS,Programme Spend (Oracle Projects Control Account)
FCO,FCO,21/12/2015,5650768,483509,UNITED NATIONS,Programme Spend (Oracle Projects Control Account)
FCO,FCO,22/12/2015,5651549,30721.4,MINISTRY OF FINANCE,Recharge Suspense Account (Oracle PA Control Account)
FCO,FCO,22/12/2015,5651691,34867.21,DYNAMIC ENTERPRISES,Programme Spend (Oracle Projects Control Account)
FCO,FCO,22/12/2015,5651704,118548.2,CENTER FOR RESEARCH AND SECURITY STUDIES,Programme Spend (Oracle Projects Control Account)
FCO,FCO,22/12/2015,5651735,31340.08,DIPSERVICE,Rental Payments - non residential
FCO,FCO,22/12/2015,5651754,45396.37,FCO SERVICES,Construction Project more than 10k
FCO,FCO,22/12/2015,5651765,130111,FCO SERVICES,Assets Under Construction (Oracle PA Control Account)
FCO,FCO,22/12/2015,5651804,33996,JAGUAR LAND ROVER LIMITED,Assets Under Construction (Oracle PA Control Account)
FCO,FCO,22/12/2015,5651852,34013.61,DANICA,Repairs And Refurbishment: Works Residential
FCO,FCO,22/12/2015,5651897,31800.86,G4S SECURITY SERIVICES GHANA LTD,Local Guards
FCO,FCO,22/12/2015,5651923,36905,ADAM SMITH INTERNATIONAL,Programme Spend (Oracle Projects Control Account)
FCO,FCO,22/12/2015,5651929,60000,STABILISATION NETWORK,Programme Spend (Oracle Projects Control Account)
FCO,FCO,22/12/2015,5651992,3201750.05,NATO INTERNATIONAL STAFF,Programme Spend (Oracle Projects Control Account)
FCO,FCO,22/12/2015,5652098,1311449.92,UNOPS,Programme Spend (Oracle Projects Control Account)
FCO,FCO,22/12/2015,5652204,49036.52,PICKFORDS MOVE MANAGEMENT LTD,Heavy Baggage
FCO,FCO,22/12/2015,5652233,50558.5,PICKFORDS MOVE MANAGEMENT LTD,Heavy Baggage
FCO,FCO,22/12/2015,5652242,540000,ALHAJI ISA MOHAMMED,Rental Payments - non residential
FCO,FCO,22/12/2015,5652254,87133.68,PICKFORDS MOVE MANAGEMENT LTD,Heavy Baggage
FCO,FCO,22/12/2015,5652292,-25573.32,PICKFORDS MOVE MANAGEMENT LTD,Heavy Baggage
FCO,FCO,22/12/2015,5652298,351561.12,THE ROYAL BANK OF SCOTLAND,Multiple Accounts
FCO,FCO,22/12/2015,5652317,61222.82,INTERSERVE FM LTD,Multiple Accounts
FCO,FCO,22/12/2015,5652341,33026.01,CONFLICT ARMAMENT RESEARCH,Programme Spend (Oracle Projects Control Account)
FCO,FCO,22/12/2015,5652352,87010,DSFA  DIPLOMATIC SERVICE FAMILIES ASSOCIATION,DSFA
FCO,FCO,22/12/2015,5652394,79424.45,DR SAAD M ELFADIL ALSHREF,Recharge Suspense Account (Oracle PA Control Account)
FCO,FCO,22/12/2015,5652408,29973.72,THE ROYAL BANK OF SCOTLAND,Recharge Suspense Account (Oracle PA Control Account)
FCO,FCO,22/12/2015,5652428,47235.58,TNT EXPRESS,Specialist Contractors
FCO,FCO,22/12/2015,5652494,-93616.22,G4S SECURE SOLUTIONS UK,Manned Guarding Services
FCO,FCO,23/12/2015,5653131,26274.51,ACCOMODATION PROVIDER,Rental Payments - residential
FCO,FCO,23/12/2015,5653132,26274.51,ACCOMODATION PROVIDER,Rental Payments - residential
FCO,FCO,23/12/2015,5653133,26274.51,ACCOMODATION PROVIDER,Rental Payments - residential
FCO,FCO,23/12/2015,5653205,50000,BRITISH COUNCIL,Programme Spend (Oracle Projects Control Account)
FCO,FCO,23/12/2015,5653210,120585.25,CROWN ESTATE COMMIS CASH A C,Rental Payments - residential
FCO,FCO,23/12/2015,5653237,32390.44,NAJMI SONS AND BROTHERS LTD,Fuel
FCO,FCO,23/12/2015,5653247,60428.53,VOYA FINANCIAL,Multiple Accounts
FCO,FCO,23/12/2015,5653273,180000,CROWN ESTATE COMMIS CASH A C,Rental Payments - non residential
FCO,FCO,23/12/2015,5653299,139026,MILTON KEYNES COUNCIL,Rates Taxes Non-Residential
FCO,FCO,23/12/2015,5653358,37092,FCO SERVICES,Despatch Charges
FCO,FCO,23/12/2015,5653360,29179.06,EQUITY BANK,Le Staff Pay
FCO,FCO,23/12/2015,5653364,28944,FCO SERVICES,Despatch Charges
FCO,FCO,23/12/2015,5653367,205567,FCO SERVICES,Postal Services
FCO,FCO,23/12/2015,5653373,122472,FCO SERVICES,Postal Services
FCO,FCO,23/12/2015,5653437,25692,FCO SERVICES,Freight & Customs Clearance Charges
FCO,FCO,23/12/2015,5653440,25038.25,FCO SERVICES,Postal Services
FCO,FCO,23/12/2015,5653447,75104,FCO SERVICES,Air Freight Dip Bags - Freight & Clearance Charges
FCO,FCO,23/12/2015,5653453,247658.5,FCO SERVICES,Air Freight Dip Bags - Freight & Clearance Charges
FCO,FCO,23/12/2015,5653456,101612.5,FCO SERVICES,Air Freight Dip Bags - Freight & Clearance Charges
FCO,FCO,23/12/2015,5653471,29705.77,SPARROW TECHNOLOGIES LTD,Property Maintenance Overseas Residential
FCO,FCO,23/12/2015,5653479,353029.25,FCO SERVICES,Air Freight Dip Bags - Freight & Clearance Charges
FCO,FCO,23/12/2015,5653588,-784276.75,THE ROYAL BANK OF SCOTLAND,Travel Package Advance Overseas Posting (Credit Card Payments Only)
FCO,FCO,23/12/2015,5653644,54857.84,DBB CONSTRUCTION DECORATION CO LTD,Assets Under Construction (Oracle PA Control Account)
FCO,FCO,23/12/2015,5653657,"130,000.00",DEFENCE BUSINESS SERVICES FINANCE,Programme Spend (Oracle Projects Control Account)
FCO,FCO,23/12/2015,5653689,197165,UNDP CONTRIBUTIONS,Programme Spend (Oracle Projects Control Account)
FCO,FCO,23/12/2015,5653693,33268.19,BUNDESVERMOEGENSAMT,Multiple Accounts
FCO,FCO,23/12/2015,5653719,232352.31,H M EXCHEQUER,CFER Payments to The Exchequer (CSC Use Only)
FCO,FCO,23/12/2015,5653722,212968.68,H M EXCHEQUER,CFER Payments to The Exchequer (CSC Use Only)
FCO,FCO,23/12/2015,5653727,39786.38,LANDS COMMISSION,Rental Payments - residential
FCO,FCO,23/12/2015,5653728,90209.44,LANDS COMMISSION,Rental Payments - residential
FCO,FCO,24/12/2015,5654363,45440.38,CITY OF TSHWANE,Multiple Accounts
FCO,FCO,24/12/2015,5654374,500000,ORGANIZATION OF AMERICAN STATES,Programme Spend (Oracle Projects Control Account)
FCO,FCO,29/12/2015,5655511,63459,RISHI KESHAV SHAH,Rental Payments - non residential
FCO,FCO,29/12/2015,5655524,31513.87,POWER PROJECTS (QATAR) WLL,Rental Payments - residential
FCO,FCO,29/12/2015,5655545,53010.73,CAMPAIGN FOR FREE AND FAIR ELECTIONS CAFFE,Programme Spend (Oracle Projects Control Account)
FCO,FCO,29/12/2015,5655592,-1607641.6,INM OTHER DEBTORS,Business Hospitality (former DEE)
FCO,FCO,29/12/2015,5655612,45263.23,COLLIERS INTERNATIONAL,Multiple Accounts
FCO,FCO,29/12/2015,5655636,57025.8,PLAZA TOWER LLC,Multiple Accounts
FCO,FCO,29/12/2015,5655663,55241.98,AETNA,Multiple Accounts
FCO,FCO,29/12/2015,5655709,32487.33,TORCHLIGHT SOLUTIONS LTD,Programme Spend (Oracle Projects Control Account)
FCO,FCO,29/12/2015,5655780,171855,CITY OF WESTMINSTER,Rates Taxes Non-Residential
FCO,FCO,29/12/2015,5655852,1638382.53,G4S RISK MANAGEMENT LTD,UK Guarding Contracts Overseas
FCO,FCO,29/12/2015,5655902,5908371.14,MAYDAY RESCUE,Programme Spend (Oracle Projects Control Account)
FCO,FCO,29/12/2015,5655932,35145.46,TRAVEL EXPERIENCE LTD,Chogm
FCO,FCO,29/12/2015,5655954,66079.36,CONSOLIDATED PR LTD,General Information Services
FCO,FCO,29/12/2015,5655975,32119.92,TODD RESEARCH LTD,Estates - Other Machinery and Equipment
FCO,FCO,29/12/2015,5655976,57000,DTZ CONSULTING AND RESEARCH,Estates Management Services
FCO,FCO,29/12/2015,5656022,284703.11,GILBERT ASH LIMITED,Assets Under Construction (Oracle PA Control Account)
FCO,FCO,29/12/2015,5656023,78631,CAPITA PROPERTY AND INFRASTRUCTURE LTD,Assets Under Construction (Oracle PA Control Account)
FCO,FCO,29/12/2015,5656025,41830.82,CEFAS (THE CENTRE FOR ENVIRONMENT FISHERIES + AQUACULTURE SCIENCE),Programme Spend (Oracle Projects Control Account)
FCO,FCO,30/12/2015,5656399,31054.62,NAJMI SONS AND BROTHERS LTD,Fuel
FCO,FCO,30/12/2015,5656448,516789.13,INPREDSERVICE,Rental Payments - non residential
FCO,FCO,30/12/2015,5656490,65525.57,ADP,Multiple Accounts
FCO,FCO,30/12/2015,5656496,38990.46,MAINTENANCE MANAGEMENT GROUP SAL,Multiple Accounts
FCO,FCO,30/12/2015,5656517,32414.1,FIRST GULF PROPERTIES,Multiple Accounts
FCO,FCO,30/12/2015,5656519,58286.31,VOYA FINANCIAL,Multiple Accounts
FCO,FCO,30/12/2015,5656679,40732.93,TAAM PETROLEUM LTD,Fuel
FCO,FCO,30/12/2015,5656728,28516.31,BRICKELL BAY TOWER LTD,Multiple Accounts
FCO,FCO,30/12/2015,5656746,37235.99,TAAM PETROLEUM LTD,Fuel
FCO,FCO,30/12/2015,5656751,54461.68,TAAM PETROLEUM LTD,Fuel
FCO,FCO,30/12/2015,5656787,-34355.83,SNF OTHER DEBTORS,Le Staff Pay
FCO,FCO,30/12/2015,5656789,-63803.69,SNF OTHER DEBTORS,Fuel Oil Non-Residential
FCO,FCO,30/12/2015,5656830,69736.42,MSECURE LIMITED,Assets Under Construction (Oracle PA Control Account)
FCO,FCO,30/12/2015,5656852,407053.42,CITY OF WESTMINSTER,Rates Taxes Non-Residential
FCO,FCO,30/12/2015,5656926,83198.84,CONCEPT BUILDING SERVICES SOUTHERN LTD,Construction Project more than 10k
FCO,FCO,30/12/2015,5656946,31748.14,USW OTHER DEBTORS,Multiple Accounts
FCO,FCO,31/12/2015,5657247,-29567.02,COMPUTACENTER UK LTD,Estates - Other Machinery and Equipment
FCO,FCO,31/12/2015,5657249,278882.52,CABINET OFFICE,Early Retirement Costs (Pre VES)
FCO,FCO,31/12/2015,5657258,71171.56,ADP,Multiple Accounts
FCO,FCO,31/12/2015,5657262,880151,MAYORS OFFICE FOR POLICING AND CRIME MOPC,Consular Crisis Expenditure
FCO,FCO,31/12/2015,5657264,33180,LLM LTD TA MARLIN APARTMENTS,Programme Spend (Oracle Projects Control Account)
FCO,FCO,31/12/2015,5657270,27941.9,BRITISH COUNCIL,Programme Spend (Oracle Projects Control Account)
FCO,FCO,31/12/2015,5657439,289307.49,INCOSTRAT,Programme Spend (Oracle Projects Control Account)
FCO,FCO,31/12/2015,5657501,40272.71,WESTMINSTER FOUNDATION FOR DEMOCRACY,Programme Spend (Oracle Projects Control Account)
FCO,FCO,31/12/2015,5657509,31830.45,NEBEUWA BEST AIR CONDITION NIG LTD,"Purchase of Furniture, Fittings and Domestic Appliances"
FCO,FCO,31/12/2015,5657549,91988,NATIONAL DEMOCRATIC INSTITUTE,Programme Spend (Oracle Projects Control Account)
FCO,FCO,31/12/2015,5657562,63000,SEARCH FOR COMMON GROUND,Programme Spend (Oracle Projects Control Account)
FCO,FCO,31/12/2015,5657631,46000,BRITISH COUNCIL,Programme Spend (Oracle Projects Control Account)
FCO,FCO,31/12/2015,5657646,25264.57,FCO SERVICES,Assets Under Construction (Oracle PA Control Account)
FCO,FCO,31/12/2015,5657648,207554.18,845 THIRD LP,Multiple Accounts
FCO,FCO,31/12/2015,5657666,42421.81,FCO SERVICES,Residential Property Services
FCO,FCO,31/12/2015,5657669,34530.16,FCO SERVICES,Assets Under Construction (Oracle PA Control Account)
FCO,FCO,31/12/2015,5657676,124225.22,FCO SERVICES,Assets Under Construction (Oracle PA Control Account)
FCO,FCO,31/12/2015,5657686,30492.5,FCO SERVICES,Air Freight Dip Bags - Freight & Clearance Charges
FCO,FCO,31/12/2015,5657689,123893.5,FCO SERVICES,Air Freight Dip Bags - Freight & Clearance Charges
FCO,FCO,31/12/2015,5657722,28274.45,TEAM LEYLAND INTERNATIONAL LTD,Assets Under Construction (Oracle PA Control Account)
